fUST/lending_fUST_20251008
["ID","MTS","AMOUNT","RATE_DAILY","PERIOD"]
[389828547,1759863050018,-172.95490553,0.00024599,28]
[389828548,1759863050032,-250.0,0.000246,10]
[389828549,1759863050043,-800.0,0.00024613,2]
[389828550,1759863050053,-443.25478227,0.00024616,2]
[389828551,1759863050062,-2000.0,0.00024616,2]
[389828552,1759863050073,-2000.0,0.00024616,2]
[389828553,1759863050082,-2000.0,0.00024616,2]
[389828554,1759863050091,-931.98797469,0.00024616,2]
[389828555,1759863050102,-2000.0,0.00024616,2]
[389828556,1759863050114,-2000.0,0.00024616,2]
[389828557,1759863050123,-2000.0,0.00024616,2]
[389828558,1759863050133,-2000.0,0.00024616,2]
[389828559,1759863050142,-517.87542278,0.00024616,2]
[389828560,1759863050151,-2000.0,0.00024616,2]
[389828561,1759863050161,-2000.0,0.00024616,2]
[389828562,1759863050170,-1048.62600352,0.00024652,2]
[389828563,1759863050178,-380.0,0.00024658,2]
[389828564,1759863050186,-200.0,0.00024658,15]
[389828565,1759863050194,-1135.0,0.00024658,2]
[389828566,1759863050202,-672.0,0.00024658,2]
[389828567,1759863050209,-151.0,0.00024658,2]
[389828568,1759863050217,-1998.47061646,0.000247,2]
[389828569,1759863050225,-250.0,0.000247,10]
[389828570,1759863050234,-1209.97920093,0.00024787,7]
[389828571,1759863050244,-250.0,0.000248,10]
[389828573,1759863050254,-9912.28021607,0.000248,2]
[389828575,1759863050264,-150.0,0.00024873,2]
[389828577,1759863050273,-200.80523836,0.00024873,2]
[389828579,1759863050283,-150.0,0.00024873,2]
[389828581,1759863050293,-153.324101,0.00024885,7]
[389828583,1759863050303,-404.82365093,0.00024898,2]
[389828586,1759863050313,-1998.47061646,0.000249,2]
[389828587,1759863050322,-250.0,0.000249,10]
[389828590,1759863050331,-70207.04166426,0.000249,2]
[389828592,1759863050343,-4054.39325301,0.000249,2]
[389831533,1759863220564,1000.0,0.00027397,120]
[389831534,1759863223306,10000.0,0.00028767,120]
[389831535,1759863245426,10000.0,0.00028767,120]
[389831536,1759863261108,3600.13,0.00026,60]
[389831539,1759863530353,1000.0,0.00027397,120]
[389831540,1759863571876,1134.48084624,0.000285,120]
[389831542,1759863704364,200.0,0.0002485,120]
[389831543,1759863704444,10000.01,0.00017,2]
[389831544,1759863704467,10000.01,0.00017,2]
[389831545,1759863704489,10000.01,0.00017,2]
[389831546,1759863704511,10000.01,0.00017,2]
[389831547,1759863704537,10000.01,0.00017,2]
[389831548,1759863704560,10000.01,0.00017,2]
[389831549,1759863704583,10000.01,0.00017,2]
[389831550,1759863704604,10000.01,0.00017,2]
[389831551,1759863704626,10000.01,0.00017,2]
[389831552,1759863704645,10000.01,0.00017,2]
[389831553,1759863704674,30137.27267367,0.00017,2]
[389831554,1759863726690,200.0,0.000249,120]
[389831555,1759863734359,5000.0,0.00017244,2]
[389831556,1759863841328,1000.0,0.00027397,120]
[389831557,1759863897439,400.0,0.0002876,120]
[389831558,1759863919186,5000.0,0.000196,14]
[389831559,1759863941518,5000.0,0.00017244,2]
[389831560,1759863949698,0.01,0.00017244,2]
[389831561,1759863949720,4999.99,0.00017244,2]
[389831562,1759863964820,5000.0,0.00017244,2]
[389831563,1759863972539,5000.0,0.00017244,2]
[389831565,1759863987898,0.01,0.00017244,2]
[389831566,1759863991919,-300.02170382,0.00017244,2]
[389831567,1759864021675,-202.52253902,0.00017244,2]
[389831568,1759864051896,-391.57283758,0.00017244,2]
[389831569,1759864081897,-245.14534096,0.00017244,2]
[389831571,1759864085558,167.31,0.00016503,2]
[389831572,1759864111763,-285.70539461,0.00017244,2]
[389831573,1759864141321,-195.81861696,0.00017244,2]
[389831574,1759864148176,1000.0,0.00027397,120]
[389831575,1759864149184,-3379.20356705,0.00017244,2]
[389831576,1759864149207,-150.0,0.00017465,2]
[389831577,1759864149229,-1654.23768,0.00017489,2]
[389831578,1759864149251,-289.0,0.00017641,2]
[389831579,1759864149272,-1200.0,0.00017641,2]
[389831580,1759864149294,-300.0,0.00017641,2]
[389831581,1759864149315,-4518.6805481,0.00017642,2]
[389831582,1759864149340,-172.5,0.00018065,2]
[389831583,1759864149363,-500.0,0.00018473,2]
[389831584,1759864149384,-500.0,0.00018473,2]
[389831585,1759864149407,-277.40080195,0.00018489,2]
[389831586,1759864149429,-174.5141881,0.00018489,2]
[389831587,1759864149455,-487.2880853,0.00018489,2]
[389831588,1759864149476,-2842.70194922,0.0001849,2]
[389831647,1759864231784,-1334.42757287,0.00018305,2]
[389831649,1759864231794,-436.13460952,0.00018465,2]
[389831651,1759864231803,-300.0,0.00018489,2]
[389831653,1759864231813,-13832.38972278,0.0001849,2]
[389831655,1759864231823,-159694.66067985,0.0001849,2]
[389832074,1759864239724,-60750.0,0.0001849,2]
[389832086,1759864239821,-3e-08,0.0001849,2]
[389832301,1759864242790,-50831.8888725,0.0001849,2]
[389832573,1759864245838,-2233.45,0.0001849,2]
[389832618,1759864246272,-79814.90877562,0.0001849,2]
[389832620,1759864246281,-169.17761822,0.00018565,2]
[389832622,1759864246290,-195.0,0.00018665,2]
[389832624,1759864246300,-300.0,0.00018859,2]
[389832626,1759864246310,-300.0,0.00018859,2]
[389832628,1759864246319,-300.0,0.00018859,2]
[389832630,1759864246328,-300.0,0.00018859,2]
[389832632,1759864246338,-300.0,0.00018859,2]
[389832634,1759864246351,-300.0,0.00018859,2]
[389832636,1759864246360,-300.0,0.00018859,2]
[389832638,1759864246370,-300.0,0.00018859,2]
[389832640,1759864246379,-300.0,0.00018859,2]
[389832642,1759864246390,-300.0,0.00018859,2]
[389832644,1759864246399,-300.0,0.00018859,2]
[389832645,1759864246409,-300.0,0.00018859,2]
[389832647,1759864246419,-300.0,0.00018859,2]
[389832649,1759864246428,-300.0,0.00018859,2]
[389832651,1759864246437,-300.0,0.00018859,2]
[389832653,1759864246446,-600.0,0.00018859,2]
[389832655,1759864246456,-1000.0,0.00019021,2]
[389832657,1759864246465,-217.5,0.00019265,2]
[389832659,1759864246475,-229.51882385,0.000195,2]
[389832661,1759864246487,-234.20938206,0.0001953,2]
[389832663,1759864246496,-533.72506543,0.0001953,2]
[389832665,1759864246505,-180.63555418,0.0001953,2]
[389832667,1759864246515,-1606.1442599,0.00019568,2]
[389832669,1759864246524,-188.0,0.00019808,3]
[389832671,1759864246534,-240.0,0.00019865,2]
[389832673,1759864246543,-420.0,0.00020164,2]
[389832675,1759864246552,-262.5,0.00020465,2]
[389832677,1759864246562,-720.0,0.00020745,2]
[389832679,1759864246571,-390.42,0.00020917,2]
[389832681,1759864246581,-285.0,0.00021065,2]
[389832683,1759864246590,-307.5,0.00021665,2]
[389832685,1759864246599,-500.0,0.00021893,2]
[389832687,1759864246608,-436.13460952,0.00021905,2]
[389832689,1759864246618,-587.0,0.0002199,2]
[389832691,1759864246627,-500.0,0.00022201,2]
[389832693,1759864246636,-330.0,0.00022265,2]
[389832694,1759864246645,-864.0,0.00022819,20]
[389832696,1759864246654,-352.5,0.00022865,2]
[389832698,1759864246663,-399.6941233,0.00023,2]
[389832700,1759864246672,-7191.86,0.00023013,2]
[389832702,1759864246682,-174.0,0.00023096,9]
[389832704,1759864246691,-187.186,0.00023172,2]
[389832706,1759864246700,-399.6941233,0.000232,2]
[389832708,1759864246710,-636.893,0.000232,3]
[389832710,1759864246719,-160.0,0.000232,2]
[389832712,1759864246729,-500.0,0.00023287,2]
[389832714,1759864246738,-1426.6681072,0.00023383,2]
[389832716,1759864246747,-375.0,0.00023465,2]
[389832718,1759864246757,-411.0,0.0002348,2]
[389832720,1759864246766,-399.6941233,0.000235,2]
[389832722,1759864246776,-500.0,0.000235,2]
[389832724,1759864246785,-500.0,0.00023646,2]
[389832726,1759864246796,-1000.0,0.00023667,5]
[389832728,1759864246805,-1426.6681072,0.00023681,2]
[389832730,1759864246814,-2200.737,0.00023695,2]
[389832732,1759864246823,-399.6941233,0.000237,2]
[389832734,1759864246832,-260.0,0.00023748,2]
[389832736,1759864246842,-980.0,0.00023793,2]
[389832738,1759864246851,-630.0,0.00023793,2]
[389832740,1759864246862,-2158.0,0.00023793,2]
[389832742,1759864246871,-190.0,0.0002388,8]
[389832744,1759864246881,-399.6941233,0.000239,2]
[389832746,1759864246891,-513.94319584,0.00023929,2]
[389832748,1759864246900,-823.0,0.00023981,2]
[389832750,1759864246909,-10000.0,0.00024,2]
[389832752,1759864246919,-1000.0,0.00024048,2]
[389832754,1759864246929,-397.5,0.00024065,2]
[389832756,1759864246939,-1426.6681072,0.000241,2]
[389832758,1759864246948,-1426.6681072,0.00024122,2]
[389832760,1759864246958,-360.0,0.00024296,2]
[389832762,1759864246967,-1000.0,0.000243,2]
[389832764,1759864246976,-1000.0,0.000243,2]
[389832766,1759864246986,-1000.0,0.000243,2]
[389832768,1759864246995,-1000.0,0.000243,2]
[389832770,1759864247004,-1000.0,0.000243,2]
[389832772,1759864247013,-1000.0,0.000243,2]
[389832774,1759864247022,-1000.0,0.000243,2]
[389832776,1759864247032,-1000.0,0.000243,2]
[389832778,1759864247041,-1000.0,0.000243,2]
[389832780,1759864247050,-391.570509,0.000243,2]
[389832782,1759864247060,-293.85068442,0.00024394,2]
[389832784,1759864247069,-1000.0,0.000244,2]
[389832786,1759864247079,-500.0,0.0002443,2]
[389832787,1759864247088,-500.0,0.000245,9]
[389832789,1759864247098,-500.0,0.000245,9]
[389832791,1759864247108,-2000.0,0.000245,2]
[389832793,1759864247117,-2000.0,0.000245,2]
[389832796,1759864247129,-250.0,0.000245,10]
[389832798,1759864247139,-4632.25,0.000245,2]
[389832800,1759864247149,-1426.6681076,0.0002456,2]
[389832802,1759864247159,-1000.0,0.00024596,2]
[389832804,1759864247169,-250.0,0.000246,10]
[389832806,1759864247178,-9264.5,0.000246,2]
[389832808,1759864247188,-380.0,0.00024658,2]
[389832810,1759864247198,-500.0,0.00024658,2]
[389832812,1759864247207,-500.0,0.00024658,2]
[389832814,1759864247217,-232.20608349,0.00024658,2]
[389832816,1759864247226,-151.0,0.00024658,2]
[389832818,1759864247235,-644.0,0.00024658,2]
[389832820,1759864247245,-151.0,0.00024658,2]
[389832821,1759864247254,-420.0,0.00024665,2]
[389832823,1759864247263,-250.0,0.000247,10]
[389832825,1759864247272,-500.0,0.00024773,2]
[389832827,1759864247282,-500.0,0.00024773,2]
[389832829,1759864247291,-500.0,0.00024773,2]
[389832831,1759864247300,-500.0,0.00024773,2]
[389832833,1759864247310,-500.0,0.00024773,2]
[389832835,1759864247319,-500.0,0.00024773,2]
[389832837,1759864247328,-500.0,0.00024773,2]
[389832839,1759864247338,-500.0,0.00024773,2]
[389832841,1759864247352,-502.5695181,0.00024799,2]
[389832843,1759864247361,-11166.0193898,0.00024799,2]
[389832845,1759864247370,-4689.306108,0.00024799,2]
[389832847,1759864247380,-250.0,0.000248,10]
[389832849,1759864247391,-32494.12550067,0.000248,2]
[389837325,1759864349882,642.566709,0.00013699,2]
[389837328,1759864454759,1000.0,0.00027397,120]
[389837329,1759864635586,5000.0,0.000196,14]
[389837330,1759864761784,1000.0,0.00027397,120]
[389837331,1759864844129,5000.0,0.000196,14]
[389837336,1759865250231,-228.970763,0.00017381,2]
[389837337,1759865250252,-73.08993369,0.00017381,2]
[389837338,1759865269887,151.0,0.00017244,2]
[389837339,1759865291122,419.91331187,0.00010618,2]
[389837340,1759865293138,8786.52997913,0.000125,2]
[389837341,1759865293161,2727.48804424,0.000125,2]
[389837342,1759865299903,1005.94475487,0.00015,2]
[389837343,1759865301742,-76.91006631,0.00017381,2]
[389837344,1759865301761,-152.61954408,0.00017432,2]
[389837345,1759865304800,5000.0,0.00017244,2]
[389837346,1759865306372,285.9551423,0.0001,2]
[389837347,1759865313571,980.62205859,0.00015,2]
[389837348,1759865313592,10000.01,0.00015,2]
[389837349,1759865313613,10000.01,0.00015,2]
[389837350,1759865313636,8712.85907087,0.00015,2]
[389837351,1759865315417,1000.0,0.0001,2]
[389837352,1759865327223,287.15092913,0.00017244,2]
[389837353,1759865327245,4712.84907087,0.00017244,2]
[389837354,1759865335145,5000.0,0.00017244,2]
[389837355,1759865350204,3864.33068455,0.00017244,2]
[389837356,1759865357990,4957.711241,0.00017244,2]
[389837357,1759865420771,1177.96807445,0.00017244,2]
[389837383,1759865431706,-493.13753062,0.00017244,2]
[389837410,1759865431950,-396.13522778,0.00017244,2]
[389837417,1759865432006,-3538.75916715,0.00017244,2]
[389837419,1759865432015,-513.38045592,0.00017432,2]
[389837421,1759865432026,-172.5,0.00017981,2]
[389837423,1759865432035,-1200.0,0.00018372,2]
[389837425,1759865432044,-300.0,0.00018372,2]
[389837427,1759865432053,-773.58954954,0.00018372,2]
[389837429,1759865432064,-426.41045046,0.00018372,2]
[389837431,1759865432073,-242.55424439,0.00018373,2]
[389837436,1759865432107,-257.44575561,0.00018373,2]
[389837438,1759865432117,-500.0,0.00018373,2]
[389837440,1759865432126,-500.0,0.00018373,2]
[389837442,1759865432135,-500.26441112,0.00018373,2]
[389837444,1759865432144,-500.0,0.00018373,2]
[389837445,1759865432153,-500.0,0.00018373,2]
[389837447,1759865432162,-500.0,0.00018373,2]
[389837450,1759865432171,-500.0,0.00018373,2]
[389837451,1759865432180,-500.0,0.00018373,2]
[389837453,1759865432190,-156.07019202,0.00018373,2]
[389837455,1759865432199,-500.0,0.00018373,2]
[389837457,1759865432208,-500.0,0.00018373,2]
[389837459,1759865432217,-500.0,0.00018373,2]
[389837461,1759865432226,-500.0,0.00018373,2]
[389837463,1759865432235,-500.0,0.00018373,2]
[389837465,1759865432244,-500.0,0.00018373,2]
[389837466,1759865432254,-500.0,0.00018373,2]
[389837468,1759865432263,-412.11204663,0.00018373,2]
[389837470,1759865432273,-500.0,0.00018373,2]
[389837472,1759865432282,-194.18056137,0.00018389,2]
[389837474,1759865432292,-341.10165971,0.00018389,2]
[389837476,1759865432300,-500.0,0.00018389,2]
[389837478,1759865432310,-500.0,0.00018389,2]
[389837479,1759865432319,-500.0,0.00018389,2]
[389837481,1759865432328,-504.38265207,0.00018389,2]
[389837483,1759865432337,-500.0,0.00018389,2]
[389837485,1759865432346,-500.0,0.00018389,2]
[389837487,1759865432355,-602.01760005,0.00018389,2]
[389837489,1759865432364,-500.0,0.00018389,2]
[389837491,1759865432374,-500.0,0.00018389,2]
[389837493,1759865432383,-500.0,0.00018389,2]
[389837495,1759865432393,-500.0,0.00018389,2]
[389837497,1759865432402,-500.0,0.00018389,2]
[389837499,1759865432411,-500.0,0.00018389,2]
[389837501,1759865432420,-500.0,0.00018389,2]
[389837503,1759865432429,-500.0,0.00018389,2]
[389837505,1759865432438,-307.05994847,0.00018389,2]
[389837507,1759865432447,-500.0,0.00018389,2]
[389837509,1759865432457,-500.0,0.00018389,2]
[389837511,1759865432466,-500.0,0.00018389,2]
[389837513,1759865432475,-500.0,0.00018389,2]
[389837515,1759865432484,-500.0,0.00018389,2]
[389837517,1759865432493,-500.0,0.00018389,2]
[389837519,1759865432502,-500.0,0.00018389,2]
[389837521,1759865432512,-500.0,0.00018389,2]
[389837522,1759865432521,-500.0,0.00018389,2]
[389837524,1759865432530,-500.0,0.00018389,2]
[389837526,1759865432540,-500.0,0.00018389,2]
[389837528,1759865432549,-500.0,0.00018389,2]
[389837530,1759865432558,-500.0,0.00018389,2]
[389837532,1759865432568,-500.0,0.00018389,2]
[389837534,1759865432577,-500.0,0.00018389,2]
[389837536,1759865432586,-400.0,0.00018389,2]
[389837538,1759865432595,-500.0,0.00018389,2]
[389837540,1759865432604,-34015.66842676,0.0001839,2]
[389837701,1759865438271,-20976.62555306,0.0001839,2]
[389837708,1759865438326,-6166.22068507,0.0001839,2]
[389837710,1759865438338,-520.0,0.0001839,2]
[389837716,1759865438381,-44700.0,0.0001839,2]
[389837852,1759865440082,-30751.03458328,0.0001839,2]
[389838238,1759865443683,-327.01180226,0.00018324,2]
[389838240,1759865443696,-34186.87311227,0.0001839,2]
[389838246,1759865443746,-4481.7,0.0001839,2]
[389838248,1759865443757,-11889.000004,0.0001839,2]
[389838502,1759865446189,-33.56229963,0.00018206,2]
[389838505,1759865446200,-387.61411442,0.00018206,2]
[389838508,1759865446209,-769.88588508,0.0001839,2]
[389842964,1759865956299,-497.7463583,0.00017542,2]
[389842965,1759866005884,177.26069776,0.00017187,2]
[389842966,1759866140608,109.90023137,0.00017244,2]
[389842967,1759866140631,4890.09976863,0.00017244,2]
[389842980,1759866357026,5000.0,0.00017244,2]
[389842981,1759866379872,3250.86574921,0.00017244,2]
[389842982,1759866622115,977.1254,0.0001723,2]
[389843026,1759866632222,-1304.6470345,0.00017268,2]
[389843028,1759866632233,-150.0,0.00017268,2]
[389843030,1759866632243,-170.060007,0.00017398,2]
[389843032,1759866632252,-172.5,0.00017868,2]
[389843034,1759866632262,-1426.6681072,0.00018088,2]
[389843036,1759866632272,-151.0,0.000181,2]
[389843038,1759866632281,-154.75935798,0.000182,2]
[389843040,1759866632291,-154.75935798,0.000182,2]
[389843042,1759866632300,-154.75935798,0.000182,2]
[389843044,1759866632310,-327.01180226,0.00018211,2]
[389843046,1759866632320,-1200.0,0.00018251,2]
[389843049,1759866632329,-581.5128127,0.00018252,2]
[389843053,1759866632339,-190.1234186,0.00018252,2]
[389843057,1759866632348,-500.0,0.00018273,2]
[389843059,1759866632358,-300.0,0.00018285,2]
[389843061,1759866632367,-300.0,0.00018285,2]
[389843064,1759866632376,-300.0,0.00018285,2]
[389843067,1759866632385,-1200.0,0.00018287,2]
[389843070,1759866632394,-305.77024949,0.00018289,2]
[389843073,1759866632403,-500.0,0.00018289,2]
[389843076,1759866632412,-178.00195556,0.00018289,2]
[389843079,1759866632421,-500.0,0.00018289,2]
[389843080,1759866632430,-420.70599485,0.00018289,2]
[389843082,1759866632440,-364.14354194,0.00018289,2]
[389843084,1759866632449,-500.0,0.00018289,2]
[389843086,1759866632458,-500.0,0.00018289,2]
[389843088,1759866632467,-183756.12910303,0.0001829,2]
[389843103,1759866632602,-300.0,0.0001829,2]
[389843451,1759866638250,-342.90492852,0.0001829,2]
[389843817,1759866643651,-90771.34592603,0.0001829,2]
[389844693,1759866881807,3275.27,0.00024,30]
[389844700,1759867048761,678.310409,0.00013699,2]
[389844708,1759867272026,1000.0,0.00017173,2]
[389844711,1759867322523,160.53575293,0.00017193,2]
[389844713,1759867442510,201.0492121,0.00028767,120]
[389844729,1759867712926,666.0,0.00017187,2]
[389844772,1759867832460,-444.4535887,0.00017352,2]
[389844774,1759867832470,-150.0,0.00017352,2]
[389844776,1759867832480,-172.5,0.00017952,2]
[389844778,1759867832490,-190.12341858,0.00018087,2]
[389844780,1759867832502,-300.0,0.00018185,2]
[389844782,1759867832512,-300.0,0.00018185,2]
[389844784,1759867832521,-252.41631718,0.00018185,2]
[389844786,1759867832533,-101.58368282,0.00018185,2]
[389844788,1759867832543,-500.0,0.00018186,2]
[389844790,1759867832554,-248.42246114,0.00018186,2]
[389844792,1759867832566,-251.57753886,0.00018186,2]
[389844794,1759867832578,-480.95269062,0.00018186,2]
[389844798,1759867832609,-19.04730938,0.00018186,2]
[389844800,1759867832620,-571.7642792,0.00018186,2]
[389844802,1759867832629,-500.0,0.00018186,2]
[389844804,1759867832638,-500.0,0.00018186,2]
[389844806,1759867832647,-375.49637517,0.00018186,2]
[389844808,1759867832657,-500.0,0.00018186,2]
[389844810,1759867832666,-500.0,0.00018186,2]
[389844812,1759867832676,-426.1133921,0.00018186,2]
[389844814,1759867832684,-500.0,0.00018186,2]
[389844815,1759867832693,-629.0,0.00018186,2]
[389844817,1759867832702,-261.6094418,0.00018188,2]
[389844819,1759867832711,-310.59005323,0.00018189,2]
[389844821,1759867832721,-190.44442142,0.00018189,2]
[389844823,1759867832730,-500.0,0.0001819,2]
[389844825,1759867832739,-121582.74140138,0.0001819,2]
[389844828,1759867832750,-8844.83068191,0.0001819,2]
[389844919,1759867838359,-939.2999715,0.0001819,2]
[389844921,1759867838371,-13478.25333864,0.0001819,2]
[389845196,1759867841457,-60975.0,0.0001819,2]
[389845418,1759867843573,-40061.94381902,0.0001819,2]
[389845823,1759868399583,2000.0,0.00028767,120]
[389845824,1759868471582,-183.17661,0.00017289,2]
[389845825,1759868471609,-150.0,0.00017289,2]
[389845826,1759868486462,-172.5,0.00017889,2]
[389845827,1759868491730,-176.0528603,0.00018089,2]
[389845828,1759868491752,-123.39761426,0.00018089,2]
[389845829,1759868501512,-176.60238574,0.00018089,2]
[389845831,1759868522330,300.0,0.00018089,2]
[389845832,1759868535602,-1426.6681072,0.00018029,2]
[389845833,1759868541730,-223.74670583,0.0001809,2]
[389845834,1759868542649,-548.44091927,0.00018088,2]
[389845835,1759868542682,-8903.12816146,0.0001809,2]
[389845836,1759868543645,-10000.01,0.0001809,2]
[389845881,1759869032698,-500.0,0.00017348,2]
[389845884,1759869032708,-150.0,0.00017348,2]
[389845886,1759869032717,-172.5,0.00017948,2]
[389845887,1759869032726,-500.0,0.00018086,2]
[389845889,1759869032735,-504.38265207,0.00018086,2]
[389845891,1759869032744,-270.09338149,0.00018086,2]
[389845893,1759869032753,-500.0,0.00018086,2]
[389845895,1759869032763,-500.0,0.00018086,2]
[389845897,1759869032775,-195.248146,0.00018086,2]
[389845899,1759869032783,-500.0,0.00018086,2]
[389845901,1759869032792,-500.0,0.00018086,2]
[389845903,1759869032801,-500.0,0.00018086,2]
[389845904,1759869032811,-500.0,0.00018086,2]
[389845906,1759869032821,-500.0,0.00018086,2]
[389845908,1759869032837,-500.0,0.00018086,2]
[389845910,1759869032847,-500.0,0.00018086,2]
[389845912,1759869032856,-500.0,0.00018086,2]
[389845913,1759869032866,-500.0,0.00018086,2]
[389845914,1759869032876,-500.0,0.00018086,2]
[389845916,1759869032885,-609.64291836,0.00018086,2]
[389845918,1759869032895,-434.39331547,0.00018086,2]
[389845919,1759869032904,-500.0,0.00018086,2]
[389845920,1759869032917,-545.03622006,0.00018086,2]
[389845922,1759869032927,-500.0,0.00018086,2]
[389845924,1759869032936,-500.0,0.00018086,2]
[389845926,1759869032945,-500.0,0.00018086,2]
[389845927,1759869032955,-500.0,0.00018086,2]
[389845928,1759869032965,-500.0,0.00018086,2]
[389845929,1759869032975,-500.0,0.00018086,2]
[389845930,1759869032985,-500.0,0.00018086,2]
[389845931,1759869032995,-500.0,0.00018086,2]
[389845932,1759869033004,-500.0,0.00018086,2]
[389845933,1759869033013,-500.0,0.00018086,2]
[389845934,1759869033022,-300.0,0.00018086,2]
[389845935,1759869033031,-1200.0,0.00018086,2]
[389845936,1759869033041,-300.0,0.00018086,2]
[389845937,1759869033050,-300.0,0.00018086,2]
[389845938,1759869033060,-300.0,0.00018086,2]
[389845939,1759869033069,-50000.0,0.00018087,2]
[389845940,1759869033078,-500.0,0.00018088,2]
[389845941,1759869033088,-183.17,0.00018088,2]
[389845942,1759869033097,-2703.12767135,0.00018088,2]
[389845943,1759869033107,-348.74156823,0.00018089,2]
[389845944,1759869033116,-266.85394918,0.00018089,2]
[389845945,1759869033126,-500.0,0.00018089,2]
[389845946,1759869033135,-438.7527354,0.0001809,2]
[389845947,1759869033145,-179509.3087366,0.0001809,2]
[389845948,1759869033440,-500.0,0.00018086,2]
[389845949,1759869033450,-500.0,0.00018086,2]
[389845950,1759869033459,-60062.87752187,0.0001809,2]
[389845954,1759869038538,-500.0,0.00018086,2]
[389845955,1759869038548,-500.0,0.00018086,2]
[389845956,1759869038557,-500.0,0.00018086,2]
[389845957,1759869038566,-500.0,0.00018086,2]
[389845958,1759869038576,-500.0,0.00018086,2]
[389845959,1759869038585,-500.0,0.00018086,2]
[389845960,1759869038594,-500.0,0.00018086,2]
[389845961,1759869038603,-500.0,0.00018086,2]
[389845962,1759869038612,-500.0,0.00018086,2]
[389845963,1759869038621,-500.0,0.00018086,2]
[389845964,1759869038630,-500.0,0.00018086,2]
[389845965,1759869038639,-8014.58922965,0.0001809,2]
[389845977,1759869041748,-3e-08,0.00018,2]
[389845978,1759869041779,-2877.17193517,0.00018,2]
[389845979,1759869041789,-1122.82806483,0.0001809,2]
[389845988,1759869043821,-383.41,0.0001809,2]
[389845989,1759869043872,-101780.10157976,0.0001809,2]
[389845990,1759869043881,-198.29765707,0.00018188,2]
[389845991,1759869043890,-168.99728248,0.00018188,2]
[389845992,1759869043899,-500.0,0.00018188,2]
[389845993,1759869043911,-500.0,0.00018188,2]
[389845994,1759869043921,-500.0,0.0001819,2]
[389845995,1759869043930,-151.0,0.0001819,2]
[389845996,1759869043940,-753.8542772,0.00018234,2]
[389845997,1759869043950,-9593.239629,0.00018234,2]
[389845998,1759869043959,-21475.1332216,0.00018241,2]
[389845999,1759869043968,-813.6561758,0.00018241,2]
[389846000,1759869043978,-4689.3061081,0.00018241,2]
[389846002,1759869043990,-151.0,0.00018241,2]
[389846003,1759869043999,-151.0,0.00018241,2]
[389846004,1759869044008,-151.0,0.00018241,2]
[389846005,1759869044017,-299.0,0.00018241,2]
[389846006,1759869044026,-500.0,0.00018261,2]
[389846007,1759869044035,-151.0,0.00018324,2]
[389846008,1759869044043,-202.314797,0.00018324,2]
[389846009,1759869044053,-1021.87164505,0.00018352,2]
[389846010,1759869044062,-151.0,0.00018352,2]
[389846011,1759869044071,-151.0,0.00018352,2]
[389846012,1759869044080,-151.0,0.00018352,2]
[389846013,1759869044089,-151.0,0.00018352,2]
[389846014,1759869044097,-156.171134,0.00018352,2]
[389846015,1759869044106,-151.0,0.00018352,2]
[389846016,1759869044114,-151.645081,0.00018352,2]
[389846017,1759869044123,-500.0,0.00018362,2]
[389846018,1759869044132,-183.17,0.00018362,2]